Workbook

Sheet Prop.Act Budget
A1: Brighton High PTA
B2: Financial Report | C2: =TODAY() -> 2012-12-06
B4: 2012-13 Approved | C4: 2012-13 Actual
A5: Income
A6: Lifetouch Photos
A7: Membership Dues | B7: 1512 | C7: 1771.97
A8: Donations | B8: 3336 | C8: 419.53
A9: Sales Tax Refund | B9: 0
A10: Region monies-Graduation
A11: Total | B11: =SUM(B6:B10) -> 4848 | C11: =SUM(C6:C10) -> 2191.5
A13: Expenditures: | D13: Balance
A14: PTC Lunches | B14: 1800 | D14: =+B14-C14 -> 1800
A15: Holiday Teacher Lunch | B15: 50 | D15: 50
A16: Teacher Awards | B16: 225 | C16: 122.12 | D16: 102.88
A17: Teacher Appreciation | B17: 500 | D17: 500
A18: Teacher B days | B18: 75 | D18: 75
A19: Teacher Gift | B19: 300 | D19: 300
A20: NAMI | B20: 100 | C20: 34.51 | D20: 65.49
A21: Liability Insurance | B21: 320 | D21: 320
A22: PTSA Training | B22: 260 | D22: 260
A23: Reflections | B23: 100 | D23: 100
A24: Magnets | B24: 927 | D24: 927
A25: Student Relations | B25: 150 | C25: 755 | D25: -605
A26: Student "You Got Caught Award" | B26: 300 | D26: 300
A27: Student Fundraiser | B27: 300 | D27: 300
A28: Projects | B28: 200 | D28: 200
A29: Graduation
A30: PTA dues | B30: 918
A31: Council dues
A32: Totals | B32: =SUM(B14:B31) -> 6525 | C32: =SUM(C14:C31) -> 911.63 | D32: =SUM(D14:D31) -> 4695.37
A33: Income less Expenditures | B33: =B11-B32 -> -1677 | C33: =C11-C32 -> 1279.87
A34: Current Bk Balance | B34: 7968.16

Sheet CK REG
A1: BHS CHECK REGISTER '12- '13
D2: 2012-11-09
E4: Check | F4: Deposit
A5: Num, | B5: Date | C5: Description | D5: Acct | E5: CK Amount | F5: D Amount | G5: Balance
B6: 2012-10-12 | C6: Starting Balance | G6: 6688.29
A7: Deposit | B7: 2012-10-23 | C7: Birthday Donations | D7: Donations | F7: 365.23 | G7: 7053.52
A8: 1713 | B8: 2012-10-30 | C8: Halloween Party | D8: Student Relations | E8: 755 | G8: 6298.52
A9: Deposit | B9: 2012-11-12 | C9: Lauren Mckell | D9: Donations | F9: 54.3 | G9: 6352.82
A10: 1714 | B10: 2012-11-12 | C10: Teacher day awards | D10: Teacher Awards | E10: 122.12 | G10: 6230.7
A11: 1715 | B11: 2012-11-15 | C11: NAMI Dues | D11: NAMI | E11: 34.51 | G11: 6196.19
A12: Deposit | B12: 2012-11-18 | C12: Fall period dues | D12: Membership Dues | F12: 1448.17 | G12: 7644.36
A13: Deposit | B13: 2012-11-19 | C13: Late dues | D13: Membership Dues | F13: 323.8 | G13: 7968.16

Sheet Income
A1: Brighton High PTA
A2: Income Register
A3: =TODAY() -> 2012-12-06
A5: Income Source | B5: Date | C5: Description | D5: Amount Rec'd
A6: Lifetouch Photos
A7: Membership Dues | B7: 2012-11-18 | C7: Fall period dues | D7: 1448.17
B8: 2012-11-19 | C8: Late dues | D8: 323.8
A9: Donations | B9: 2012-10-23 | C9: Birthday Donations | D9: 365.23
B10: 2012-11-12 | C10: Lauren Mckell | D10: 54.3
A11: Sales Tax Refund
A12: Region monies-Graduation
A13: Total Income | D13: =SUM(D6:D12) -> 2191.5

Sheet Expenses
A1: Brighton High PTA
A2: Expense Report
A3: =TODAY() -> 2012-12-06
A5: Expense Category | B5: Date | C5: Check # | D5: Description | E5: Amount
A6: PTC Lunches
A7: Holiday Teacher Lunch
A8: Teacher Awards | B8: 2012-11-12 | C8: 1714 | D8: Teacher day awards | E8: 122.12
A9: Teacher Appreciation
A10: Teacher B days
A11: Teacher Gift
A12: NAMI | B12: 2012-11-15 | C12: 1715 | D12: NAMI Dues | E12: 34.51
A13: Liability Insurance
A14: PTSA Training
A15: Reflections
A16: Magnets
A17: Student Relations | B17: 2012-10-30 | C17: 1713 | D17: Halloween party | E17: 750
A18: Student "You Got Caught Award"
A19: Student Fundraiser
A20: Projects
A21: Graduation
A22: PTA dues
A23: Council dues
A24: Total Expenses | E24: =SUM(E6:E23) -> 906.63

Sheet Yr End Financial
A1: Brighton High PTA
A2: Year-End Financial Report
A3: 2012-2013
A4: Balance Forward: | B4: (as of 8/31/2012) | C4: 6688.29
A6: Annual Revenue:
A7: Lifetouch Photos | C7: =VLOOKUP("Lifetouch Photos",Income!$A$6:$D$37,4,FALSE) -> 0
A8: Membership Dues | C8: =VLOOKUP("Membership Dues",Income!$A$6:$D$37,4,FALSE) -> 1448.17
A9: Donations | C9: =VLOOKUP("Donations",Income!$A$6:$D$37,4,FALSE) -> 365.23
A10: Sales Tax Refund | C10: =VLOOKUP("Sales Tax Refund",Income!$A$6:$D$37,4,FALSE) -> 0
A11: Region monies-Graduation | C11: =VLOOKUP("Region monies-Graduation",Income!$A$6:$D$37,4,FALSE) -> 0
A12: Total 2012/13 Revenue | C12: =SUM(C7:C11) -> 1813.4
A14: Expenses:
A15: PTC Lunches | C15: =VLOOKUP("PTC Lunches",Expenses!$A$6:$E$35,5,FALSE) -> 0
A16: Holiday Teacher Lunch | C16: =VLOOKUP("Holiday Teacher Lunch",Expenses!$A$6:$E$35,5,FALSE) -> 0
A17: Teacher Awards | C17: =VLOOKUP("Teacher Awards",Expenses!$A$6:$E$35,5,FALSE) -> 122.12
A18: Teacher Appreciation | C18: =VLOOKUP("Teacher Appreciation",Expenses!$A$6:$E$35,5,FALSE) -> 0
A19: Teacher B days | C19: =VLOOKUP("Teacher B Days",Expenses!$A$6:$E$35,5,FALSE) -> 0
A20: Teacher Gift | C20: =VLOOKUP("Teacher Gift",Expenses!$A$6:$E$35,5,FALSE) -> 0
A21: NAMI | C21: =VLOOKUP("NAMI",Expenses!$A$6:$E$35,5,FALSE) -> 34.51
A22: Liability Insurance | C22: =VLOOKUP("Liability Insurance",Expenses!$A$6:$E$35,5,FALSE) -> 0
A23: PTSA Training | C23: =VLOOKUP("PTSA Training",Expenses!$A$6:$E$35,5,FALSE) -> 0
A24: Reflections | C24: =VLOOKUP("Reflections",Expenses!$A$6:$E$35,5,FALSE) -> 0
A25: Magnets | C25: =VLOOKUP("Magnets",Expenses!$A$6:$E$35,5,FALSE) -> 0
A26: Student Relations | C26: =VLOOKUP("Student Relations",Expenses!$A$6:$E$35,5,FALSE) -> 750
A27: Student "You Got Caught Award" | C27: =VLOOKUP("Student ""You Got Caught Award""",Expenses!$A$6:$E$35,5,FALSE) -> 0
A28: Student Fundraiser | C28: =VLOOKUP("Student Fundraiser",Expenses!$A$6:$E$35,5,FALSE) -> 0
A29: Projects | C29: =VLOOKUP("Projects",Expenses!$A$6:$E$35,5,FALSE) -> 0
A30: Graduation | C30: =VLOOKUP("PTC Lunches",Expenses!$A$6:$E$35,5,FALSE) -> 0
A31: PTA dues | C31: =VLOOKUP("PTC Lunches",Expenses!$A$6:$E$35,5,FALSE) -> 0
A32: Council dues | C32: =VLOOKUP("PTC Lunches",Expenses!$A$6:$E$35,5,FALSE) -> 0
A33: Total Expenditures | C33: =SUM(C15:C32) -> 906.63
A35: Ending Balance | C35: =C4+C12-C33 -> 7595.06

Sheet Accounts
A1: Expenditures:
A2: PTC Lunches
A3: Holiday Teacher Lunch
A4: Teacher Awards
A5: Teacher Appreciation
A6: Teacher B days
A7: Teacher Gift
A8: NAMI
A9: Liability Insurance
A10: PTSA Training
A11: Reflections
A12: Magnets
A13: Student Relations
A14: Student "You Got Caught Award"
A15: Student Fundraiser
A16: Projects
A17: Graduation
A18: PTA dues
A19: Council dues
A22: Income
A23: Lifetouch Photos
A24: Membership Dues
A25: Donations
A26: Sales Tax Refund
A27: Region monies-Graduation
